{"text_format":"1","workbook":"xlsx","n_sheets":3,"sheets":["Formato","Instructivo de Diligenciamiento","Listas"],"not_rendered":{"charts":0,"images":3,"macros":1,"external_links":0,"defined_names":3,"comments":1,"pivot_tables":0},"unopened":[],"bounds":{"document_bytes":16777216,"sheet_cells":100000,"rows_first":2000,"rows_last":500,"rows_between":2000,"halvings":0,"cell_chars":16384,"cell_head_chars":4096},"cells_cut":0,"cells_raw":0,"read":"whole","date_system":"1900"}

{"sheet":"Formato","index":0,"n_rows":205,"n_cols":17,"rows_kept":205,"cut":false,"hidden":false,"merged":[[186,2,186,3],[186,8,186,9],[186,10,186,11],[186,16,186,17],[184,2,184,3],[184,8,184,9],[184,10,184,11],[184,16,184,17],[185,2,185,3],[185,8,185,9],[185,10,185,11],[185,16,185,17],[182,2,182,3],[182,8,182,9],[182,10,182,11],[182,16,182,17],[183,2,183,3],[183,8,183,9],[183,10,183,11],[183,16,183,17],[180,2,180,3],[180,8,180,9],[180,10,180,11],[180,16,180,17],[181,2,181,3],[181,8,181,9],[181,10,181,11],[181,16,181,17],[178,2,178,3],[178,8,178,9],[178,10,178,11],[178,16,178,17],[179,2,179,3],[179,8,179,9],[179,10,179,11],[179,16,179,17],[176,2,176,3],[176,8,176,9],[176,10,176,11],[176,16,176,17],[177,2,177,3],[177,8,177,9],[177,10,177,11],[177,16,177,17],[174,2,174,3],[174,8,174,9],[174,10,174,11],[174,16,174,17],[175,2,175,3],[175,8,175,9],[175,10,175,11],[175,16,175,17],[172,2,172,3],[172,8,172,9],[172,10,172,11],[172,16,172,17],[173,2,173,3],[173,8,173,9],[173,10,173,11],[173,16,173,17],[170,2,170,3],[170,8,170,9],[170,10,170,11],[170,16,170,17],[171,2,171,3],[171,8,171,9],[171,10,171,11],[171,16,171,17],[168,2,168,3],[168,8,168,9],[168,10,168,11],[168,16,168,17],[169,2,169,3],[169,8,169,9],[169,10,169,11],[169,16,169,17],[166,2,166,3],[166,8,166,9],[166,10,166,11],[166,16,166,17],[167,2,167,3],[167,8,167,9],[167,10,167,11],[167,16,167,17],[164,2,164,3],[164,8,164,9],[164,10,164,11],[164,16,164,17],[165,2,165,3],[165,8,165,9],[165,10,165,11],[165,16,165,17],[162,2,162,3],[162,8,162,9],[162,10,162,11],[162,16,162,17],[163,2,163,3],[163,8,163,9],[163,10,163,11],[163,16,163,17],[160,2,160,3],[160,8,160,9],[160,10,160,11],[160,16,160,17],[161,2,161,3],[161,8,161,9],[161,10,161,11],[161,16,161,17],[158,2,158,3],[158,8,158,9],[158,10,158,11],[158,16,158,17],[159,2,159,3],[159,8,159,9],[159,10,159,11],[159,16,159,17],[156,2,156,3],[156,8,156,9],[156,10,156,11],[156,16,156,17],[157,2,157,3],[157,8,157,9],[157,10,157,11],[157,16,157,17],[154,2,154,3],[154,8,154,9],[154,10,154,11],[154,16,154,17],[155,2,155,3],[155,8,155,9],[155,10,155,11],[155,16,155,17],[152,2,152,3],[152,8,152,9],[152,10,152,11],[152,16,152,17],[153,2,153,3],[153,8,153,9],[153,10,153,11],[153,16,153,17],[150,2,150,3],[150,8,150,9],[150,10,150,11],[150,16,150,17],[151,2,151,3],[151,8,151,9],[151,10,151,11],[151,16,151,17],[148,2,148,3],[148,8,148,9],[148,10,148,11],[148,16,148,17],[149,2,149,3],[149,8,149,9],[149,10,149,11],[149,16,149,17],[146,2,146,3],[146,8,146,9],[146,10,146,11],[146,16,146,17],[147,2,147,3],[147,8,147,9],[147,10,147,11],[147,16,147,17],[144,2,144,3],[144,8,144,9],[144,10,144,11],[144,16,144,17],[145,2,145,3],[145,8,145,9],[145,10,145,11],[145,16,145,17],[142,2,142,3],[142,8,142,9],[142,10,142,11],[142,16,142,17],[143,2,143,3],[143,8,143,9],[143,10,143,11],[143,16,143,17],[140,2,140,3],[140,8,140,9],[140,10,140,11],[140,16,140,17],[141,2,141,3],[141,8,141,9],[141,10,141,11],[141,16,141,17],[138,2,138,3],[138,8,138,9],[138,10,138,11],[138,16,138,17],[139,2,139,3],[139,8,139,9],[139,10,139,11],[139,16,139,17],[136,2,136,3],[136,8,136,9],[136,10,136,11],[136,16,136,17],[137,2,137,3],[137,8,137,9],[137,10,137,11],[137,16,137,17],[134,2,134,3],[134,8,134,9],[134,10,134,11],[134,16,134,17],[135,2,135,3],[135,8,135,9],[135,10,135,11],[135,16,135,17],[132,2,132,3],[132,8,132,9],[132,10,132,11],[132,16,132,17],[133,2,133,3],[133,8,133,9],[133,10,133,11],[133,16,133,17],[130,2,130,3],[130,8,130,9],[130,10,130,11],[130,16,130,17],[131,2,131,3],[131,8,131,9],[131,10,131,11],[131,16,131,17],[128,2,128,3],[128,8,128,9],[128,10,128,11],[128,16,128,17],[129,2,129,3],[129,8,129,9],[129,10,129,11],[129,16,129,17],[126,2,126,3],[126,8,126,9],[126,10,126,11],[126,16,126,17],[127,2,127,3],[127,8,127,9],[127,10,127,11],[127,16,127,17],[124,2,124,3],[124,8,124,9],[124,10,124,11],[124,16,124,17],[125,2,125,3],[125,8,125,9],[125,10,125,11],[125,16,125,17],[122,2,122,3],[122,8,122,9],[122,10,122,11],[122,16,122,17],[123,2,123,3],[123,8,123,9],[123,10,123,11],[123,16,123,17],[120,2,120,3],[120,8,120,9],[120,10,120,11],[120,16,120,17],[121,2,121,3],[121,8,121,9],[121,10,121,11],[121,16,121,17],[118,2,118,3],[118,8,118,9],[118,10,118,11],[118,16,118,17],[119,2,119,3],[119,8,119,9],[119,10,119,11],[119,16,119,17],[116,2,116,3],[116,8,116,9],[116,10,116,11],[116,16,116,17],[117,2,117,3],[117,8,117,9],[117,10,117,11],[117,16,117,17],[114,2,114,3],[114,8,114,9],[114,10,114,11],[114,16,114,17],[115,2,115,3],[115,8,115,9],[115,10,115,11],[115,16,115,17],[112,2,112,3],[112,8,112,9],[112,10,112,11],[112,16,112,17],[113,2,113,3],[113,8,113,9],[113,10,113,11],[113,16,113,17],[110,2,110,3],[110,8,110,9],[110,10,110,11],[110,16,110,17],[111,2,111,3],[111,8,111,9],[111,10,111,11],[111,16,111,17],[108,2,108,3],[108,8,108,9],[108,10,108,11],[108,16,108,17],[109,2,109,3],[109,8,109,9],[109,10,109,11],[109,16,109,17],[106,2,106,3],[106,8,106,9],[106,10,106,11],[106,16,106,17],[107,2,107,3],[107,8,107,9],[107,10,107,11],[107,16,107,17],[104,2,104,3],[104,8,104,9],[104,10,104,11],[104,16,104,17],[105,2,105,3],[105,8,105,9],[105,10,105,11],[105,16,105,17],[102,2,102,3],[102,8,102,9],[102,10,102,11],[102,16,102,17],[103,2,103,3],[103,8,103,9],[103,10,103,11],[103,16,103,17],[100,2,100,3],[100,8,100,9],[100,10,100,11],[100,16,100,17],[101,2,101,3],[101,8,101,9],[101,10,101,11],[101,16,101,17],[98,2,98,3],[98,8,98,9],[98,10,98,11],[98,16,98,17],[99,2,99,3],[99,8,99,9],[99,10,99,11],[99,16,99,17],[96,2,96,3],[96,8,96,9],[96,10,96,11],[96,16,96,17],[97,2,97,3],[97,8,97,9],[97,10,97,11],[97,16,97,17],[94,2,94,3],[94,8,94,9],[94,10,94,11],[94,16,94,17],[95,2,95,3],[95,8,95,9],[95,10,95,11],[95,16,95,17],[92,2,92,3],[92,8,92,9],[92,10,92,11],[92,16,92,17],[93,2,93,3],[93,8,93,9],[93,10,93,11],[93,16,93,17],[90,2,90,3],[90,8,90,9],[90,10,90,11],[90,16,90,17],[91,2,91,3],[91,8,91,9],[91,10,91,11],[91,16,91,17],[88,2,88,3],[88,8,88,9],[88,10,88,11],[88,16,88,17],[89,2,89,3],[89,8,89,9],[89,10,89,11],[89,16,89,17],[86,2,86,3],[86,8,86,9],[86,10,86,11],[86,16,86,17],[87,2,87,3],[87,8,87,9],[87,10,87,11],[87,16,87,17],[84,2,84,3],[84,8,84,9],[84,10,84,11],[84,16,84,17],[85,2,85,3],[85,8,85,9],[85,10,85,11],[85,16,85,17],[82,2,82,3],[82,8,82,9],[82,10,82,11],[82,16,82,17],[83,2,83,3],[83,8,83,9],[83,10,83,11],[83,16,83,17],[80,2,80,3],[80,8,80,9],[80,10,80,11],[80,16,80,17],[81,2,81,3],[81,8,81,9],[81,10,81,11],[81,16,81,17],[78,2,78,3],[78,8,78,9],[78,10,78,11],[78,16,78,17],[79,2,79,3],[79,8,79,9],[79,10,79,11],[79,16,79,17],[76,2,76,3],[76,8,76,9],[76,10,76,11],[76,16,76,17],[77,2,77,3],[77,8,77,9],[77,10,77,11],[77,16,77,17],[74,2,74,3],[74,8,74,9],[74,10,74,11],[74,16,74,17],[75,2,75,3],[75,8,75,9],[75,10,75,11],[75,16,75,17],[72,2,72,3],[72,8,72,9],[72,10,72,11],[72,16,72,17],[73,2,73,3],[73,8,73,9],[73,10,73,11],[73,16,73,17],[70,2,70,3],[70,8,70,9],[70,10,70,11],[70,16,70,17],[71,2,71,3],[71,8,71,9],[71,10,71,11],[71,16,71,17],[68,2,68,3],[68,8,68,9],[68,10,68,11],[68,16,68,17],[69,2,69,3],[69,8,69,9],[69,10,69,11],[69,16,69,17],[66,2,66,3],[66,8,66,9],[66,10,66,11],[66,16,66,17],[67,2,67,3],[67,8,67,9],[67,10,67,11],[67,16,67,17],[64,2,64,3],[64,8,64,9],[64,10,64,11],[64,16,64,17],[65,2,65,3],[65,8,65,9],[65,10,65,11],[65,16,65,17],[62,2,62,3],[62,8,62,9],[62,10,62,11],[62,16,62,17],[63,2,63,3],[63,8,63,9],[63,10,63,11],[63,16,63,17],[60,2,60,3],[60,8,60,9],[60,10,60,11],[60,16,60,17],[61,2,61,3],[61,8,61,9],[61,10,61,11],[61,16,61,17],[58,2,58,3],[58,8,58,9],[58,10,58,11],[58,16,58,17],[59,2,59,3],[59,8,59,9],[59,10,59,11],[59,16,59,17],[56,2,56,3],[56,8,56,9],[56,10,56,11],[56,16,56,17],[57,2,57,3],[57,8,57,9],[57,10,57,11],[57,16,57,17],[54,2,54,3],[54,8,54,9],[54,10,54,11],[54,16,54,17],[55,2,55,3],[55,8,55,9],[55,10,55,11],[55,16,55,17],[52,2,52,3],[52,8,52,9],[52,10,52,11],[52,16,52,17],[53,2,53,3],[53,8,53,9],[53,10,53,11],[53,16,53,17],[50,2,50,3],[50,8,50,9],[50,10,50,11],[50,16,50,17],[51,2,51,3],[51,8,51,9],[51,10,51,11],[51,16,51,17],[48,2,48,3],[48,8,48,9],[48,10,48,11],[48,16,48,17],[49,2,49,3],[49,8,49,9],[49,10,49,11],[49,16,49,17],[46,10,46,11],[46,16,46,17],[47,2,47,3],[47,8,47,9],[47,10,47,11],[47,16,47,17],[44,2,44,3],[44,8,44,9],[44,10,44,11],[44,16,44,17],[45,2,45,3],[45,8,45,9],[45,10,45,11],[45,16,45,17],[1,1,1,13],[7,1,7,2],[11,1,11,2],[23,9,23,13],[25,1,25,2],[25,4,25,5],[25,6,25,8],[25,9,25,10],[25,11,25,13],[11,3,11,9],[9,10,9,11],[9,12,9,13],[2,1,2,13],[4,1,5,3],[4,10,5,11],[4,7,5,9],[4,4,5,5],[27,9,27,10],[27,11,27,13],[15,3,15,7],[27,4,27,5],[29,9,29,10],[21,1,21,13],[7,3,7,9],[9,1,9,2],[9,3,9,7],[7,12,7,13],[23,1,23,2],[23,4,23,8],[19,1,19,13],[29,1,29,2],[29,11,29,13],[17,1,17,13],[29,4,29,8],[15,1,15,2],[13,1,13,13],[27,1,27,2],[27,6,27,8],[38,2,38,3],[38,16,38,17],[38,10,38,11],[37,10,37,17],[31,6,31,8],[31,11,31,13],[37,1,37,9],[31,1,31,2],[31,4,31,5],[31,9,31,10],[35,0,35,17],[37,0,38,0],[38,8,38,9],[39,16,39,17],[188,6,188,7],[188,8,188,9],[39,10,39,11],[39,2,39,3],[39,8,39,9],[40,2,40,3],[40,8,40,9],[40,10,40,11],[40,16,40,17],[41,2,41,3],[41,8,41,9],[41,10,41,11],[41,16,41,17],[42,2,42,3],[42,8,42,9],[42,10,42,11],[42,16,42,17],[43,2,43,3],[43,8,43,9],[43,10,43,11],[43,16,43,17],[46,2,46,3],[46,8,46,9],[191,0,191,17],[195,1,195,4],[195,5,195,7],[195,8,195,11],[196,1,196,4],[196,5,196,7],[196,8,196,11],[193,1,193,4],[193,5,193,7],[193,8,193,11],[194,1,194,4],[194,5,194,7],[194,8,194,11],[203,10,204,14],[203,1,203,3],[203,6,203,8],[204,1,204,3],[204,4,204,5],[204,6,204,8],[198,1,198,3],[198,11,200,13],[201,11,201,13],[201,1,201,3],[201,6,201,8]]}
[]
[null,"FORMATO PARA MODIFICACIÓN DE ÓRDENES DE COMPRA"]
[null,"Tienda Virtual del Estado Colombiano"]
[]
[null,"Número de Orden de Compra a modificar:",null,null,14264,null,null,"Número de modificación de la Orden de Compra:",null,null,1]
[]
[]
[null,"Entidad Compradora:",null,"CENTRAL ADMINISTRATIVA Y CONTABLE ARMENIA ",null,null,null,null,null,null,null,"NIT:","800130829-1"]
[]
[null,"Nombre del solicitante:",null,"YOLANDA PUENTES TOVAR ",null,null,null,null,null,null,"Teléfono de contacto:",null,3165332741]
[]
[null,"Proveedor :",null,"S.O.S SOLUCIONES DE OFICINA &SUMINISTROS S.A.S"]
[]
[null,"Sección 1: Tipo de acción"]
[]
[null,"Tipo",null,"Modificación de la Orden de Compra"]
[]
[null,"Sección 2: Justificación de la modificación o de las acciones a realizar"]
[]
[null,"AL REALIZAR ESTE  EVENTO DE  APROBACION SOLICITUD 26287 ESTA CENTRAL ADMINISTRATIVA Y CONTABLE REGIONAL ARMENIA TUVO UN AHORRO DE $38,571,916,15, POR TAL MOTIVO SE REALIZA UNA ADICION . A LA ORDEN DE COMPRA 14264 CON EL PROVEEDOR S.O.S SOLUCIONES DE OFICINA & SUMINISTROS S.A.S , ASI MISMO REALIZANDO UNA ADICION AL CDP No. 917  QUEDANDO EN FIRME EL CDP POR LA SUMA DE $125,172,321,65."]
[]
[null,"Sección 3:  Modificación información general"]
[]
[null,"Nombre del campo",null,"¿Requiere modificación Si/No?","Datos actuales",null,null,null,null,"Nuevos datos"]
[]
[null,"Actualizar supervisor",null,"NO","Nombre del supervisor actual",null,0,null,null,"Nombre nuevo supervisor"]
[]
[null,"Dirección y/o teléfono Supervisor",null,"NO","Teléfono actual supervisor",null,0,null,null,"Teléfono nuevo supervisor"]
[]
[null,"Fecha de vencimiento",null,"NO","   La fecha vencimiento actual se tomará de la TVEC al momento del cambio",null,null,null,null,"Nueva fecha de vencimiento"]
[]
[null,"Dirección y/o teléfono Entidad",null,"NO","Dirección / teléfono actual Entidad",null,0,null,null,"Nueva dirección / teléfono Entidad"]
[]
[]
[]
["Sección 4: Modificación de artículos y servicios"]
[]
["Tipo de modificación","Información actual",null,null,null,null,null,null,null,null,"Nueva información"]
[null,"Número de la línea según O.C.","Nombre del artículo",null,"Cantidad","Unidad de medida","Precio unitario","Total","Información presupuestal",null,"Nombre del artículo",null,"Cantidad","Unidad de medida","Precio unitario","Total","Información presupuestal"]
["Modificación de artículo o servicio",1,"Almuadilla Dactilar ",null,67,"Unidad",1176,{"$f":"ROUND(E40*G40, 2)","v":78792},917,null,{"$f":"C40","v":"Almuadilla Dactilar "},null,{"$f":"25+E40","v":92},"unidad",1176,{"$f":"ROUND(M40*O40, 2)","v":108192},917]
["Modificación de artículo o servicio",2,"Almuadilla Dactilar Rercargable ",null,30,"unidad",4471,134130,917,null,"Almuadilla Dactilar Rercargable ",null,{"$f":"7+E41","v":37},"unidad",4471,165427,917]
["Modificación de artículo o servicio",3,"Almohadilla para sello recargable ",null,41,"unidad",1176,48216,917,null,"Almohadilla para sello recargable ",null,47,"unidad",1176,55272,917]
["Modificación de artículo o servicio",4,"Archivador de fuelle en poligropileno ",null,12,"unidad",7647,91764,917,null,"Archivador de fuelle en poligropileno ",null,13,"unidad",7647,99411,917]
["Modificación de artículo o servicio",5,"Bandas elasticas ref 22x25g",null,2,"caja ",235,470,917,null,"Bandas elasticas ref 22x25g",null,3,"caja",235,705,917]
["Modificación de artículo o servicio",6,"Bandas elasticas ref 22 x kilo ",null,19,"bolsa ",6471,122949,917,null,"Bandas elasticas ref 22 x kilo ",null,23,"bolsa ",6471,148833,917]
["Modificación de artículo o servicio",7,"Banderitas -mini-banderitas -señales autodhesivas ",null,260,"Unidad ",941,244660,917,null,"Banderitas -mini-banderitas -señales autodhesivas ",null,{"$f":"81+E46","v":341},"unidad",941,320881,917]
["Modificación de artículo o servicio",8,"Bisturi 18mm metalicos ",null,78,"unidad ",1529,119262,917,null,"Bisturi 18mm metalicos ",null,{"$f":"35+E47","v":113},"unidad ",1529,172777,917]
["Modificación de artículo o servicio",9,"bisturi 18mm plasticos ",null,108,"unidad",388,41904,917,null,"bisturi 18mm plasticos ",null,{"$f":"8+E48","v":116},"unidad ",388,45008,917]
["Modificación de artículo o servicio",10,"Bisturi 9mmm",null,30,"unidad ",272,8160,917,null,"Bisturi 9mmm",null,57,"unidad ",272,15504,917]
["Modificación de artículo o servicio",11,"Block amarillo cuadriculado ",null,2,"unidad ",1882,3764,917,null,"Block amarillo cuadriculado ",null,3,"unidad",1882,5646,917]
["Modificación de artículo o servicio",12,"Block amarillo rayado ",null,2,"unidad ",1882,3764,917,null,"Block amarillo rayado ",null,3,"unidad ",1882,5646,917]
["Modificación de artículo o servicio",13,"Block balnco cuadriculado ",null,88,"unidad",1047,92136,917,null,"Block balnco cuadriculado ",null,89,"unidad ",1047,93183,917]
["Modificación de artículo o servicio",15,"Boligrafo azul ",null,82,"unidad ",206,16892,917,null,"Boligrafo azul ",null,{"$f":"32+E53","v":114},"unidad",206,23484,917]
["Modificación de artículo o servicio",16,"boligrago negro ",null,1402,"unidad",206,288812,917,null,"boligrago negro ",null,{"$f":"538+E54","v":1940},"unidad",206,399640,917]
["Modificación de artículo o servicio",17,"boligrafo rojo ",null,243,"unidad ",206,50058,917,null,"boligrafo rojo ",null,{"$f":"184+E55","v":427},"unidad ",206,87962,917]
["Modificación de artículo o servicio",18,"borrador de miga de pan ",null,23,"unidad ",315,7245,917,null,"borrador de miga de pan ",null,{"$f":"2+E56","v":25},"unidad ",315,7875,917]
["Modificación de artículo o servicio",19,"borrador de nata ",null,380,"unidad ",194,73720,917,null,"borrador de nata ",null,{"$f":"78+E57","v":458},"unidad",194,88852,917]
["Modificación de artículo o servicio",20,"borrador para tablero ",null,38,"unidad ",588,22344,917,null,"borrador para tablero ",null,{"$f":"30+E58","v":68},"unidad ",588,39984,917]
["Modificación de artículo o servicio",21,"borrador para tinta con escobilla ",null,21,"unidad ",2864,60144,917,null,"borrador para tinta con escobilla ",null,{"$f":"7+E59","v":28},"unidad ",2864,80192,917]
["Modificación de artículo o servicio",27,"caja para archivo cental referencia x -200",null,3526,"unidad ",1794,6325644,917,null,"caja para archivo cental referencia x -200",null,{"$f":"547+E60","v":4073},"unidad ",1794,7306962,917]
["Modificación de artículo o servicio",28,"caja para archivo historico regencia x -100",null,685,"unidad ",1335,914475,917,null,"caja para archivo historico regencia x -100",null,{"$f":"200+E61","v":885},"unidad",1335,1181475,917]
["Modificación de artículo o servicio",30,"calculadora de bolsillo ",null,2,"unidad ",2706,5412,917,null,"calculadora de bolsillo ",null,{"$f":"17+E62","v":19},"unidad ",2706,51414,917]
["Modificación de artículo o servicio",32,"calculadora escritorio 16 digitos ",null,26,"unidad ",34412,894712,917,null,"calculadora escritorio 16 digitos ",null,{"$f":"5+E63","v":31},"unidad ",34412,1066772,917]
["Modificación de artículo o servicio",33,"carpeta presentacion carta ",null,12,"paquete x veinte ",2612,31344,917,null,"carpeta presentacion carta ",null,{"$f":"30+E64","v":42},"paquete x veinte ",2612,109704,917]
["Modificación de artículo o servicio",34,"carpeta presentacion oficio plastificado mate ",null,10,"paquete x veinte ",3106,31060,917,null,"carpeta presentacion oficio plastificado mate ",null,{"$f":"25+E65","v":35},"paquete x veinte ",3106,108710,917]
["Modificación de artículo o servicio",35,"carpeta tipo 4 aletas en cartulina desacidificada ",null,659,"unidad ",800,527200,917,null,"carpeta tipo 4 aletas en cartulina desacidificada ",null,759,"unidad ",800,607200,917]
["Modificación de artículo o servicio",36,"carpeta tipo 4 aletas en  cartulina blanca tipo propalcote ",null,14430,"unidad",715,10317450,917,null,"carpeta tipo 4 aletas en  cartulina blanca tipo propalcote ",null,16128,"unidad ",715,11531520,917]
["Modificación de artículo o servicio",37,"carpeta tipo cataloga 0,5 pulg ",null,20,"unidad ",3342,66840,917,null,"carpeta tipo cataloga 0,5 pulg ",null,25,"unidad ",3342,83550,917]
["Modificación de artículo o servicio",38,"carpeta tipo catalogo 1 pulg ",null,20,"unidad ",3688,73760,917,null,"carpeta tipo catalogo 1 pulg ",null,25,"unidad ",3688,92200,917]
["Modificación de artículo o servicio",39,"carpteta tipo catalogo 2 pulg ",null,20,"unidad ",5412,108240,917,null,"carpteta tipo catalogo 2 pulg ",null,21,"unidad ",5412,113652,917]
["Modificación de artículo o servicio",40,"carpeta tipo catalogo 3 pulg ",null,20,"unidad",6765,135300,917,null,"carpeta tipo catalogo 3 pulg ",null,32,"unidad ",6765,216480,917]
["Modificación de artículo o servicio",41,"carpeta tipo catalogo 4 pulg ",null,10,"unidad ",7706,{"$f":"ROUND(E72*G72, 2)","v":77060},917,null,{"$f":"C72","v":"carpeta tipo catalogo 4 pulg "},null,11,"unidad ",7706,{"$f":"ROUND(M72*O72, 2)","v":84766},917]
["Modificación de artículo o servicio",42,"carpetas plegables por la mitad en cartulina desacidificada ",null,10,"paquete x cincuenta ",52941,529410,917,null,"carpetas plegables por la mitad en cartulina desacidificada ",null,11,"paquete x cincuenta ",52941,582351,917]
["Modificación de artículo o servicio",43,"carpeta plegadas por la mitad en propalcote ",null,18,"paquete x cincuenta ",12353,222354,917,null,"carpeta plegadas por la mitad en propalcote ",null,20,"paquete x cincuenta ",12353,247060,917]
["Modificación de artículo o servicio",44,"carpeta carta blanca ",null,23,"paquete x cien ",4000,92000,917,null,"carpeta carta blanca ",null,29,"paquete x cien ",4000,116000,917]
["Modificación de artículo o servicio",45,"cartulina carta surtido ",null,31,"paquete x cien",4000,124000,917,null,"cartulina carta surtido ",null,40,"paquete x cien ",4000,160000,917]
["Modificación de artículo o servicio",46,"cartulina oficio blanco ",null,97,"paquete x cien ",4341,421077,917,null,"cartulina oficio blanco ",null,107,"paquete x cien",4341,464487,917]
["Modificación de artículo o servicio",47,"cartulina oficio surtido ",null,41,"paquete x cien ",4341,177981,917,null,"cartulina oficio surtido ",null,51,"paquete x cien",4341,221391,917]
["Modificación de artículo o servicio",48,"cartulina pliego blanco ",null,20,"unidad",388,7760,917,null,"cartulina pliego blanco ",null,30,"unidad ",388,11640,917]
["Modificación de artículo o servicio",49,"cartulina pliego surtidos ",null,69,"unidad ",388,26772,917,null,"cartulina pliego surtidos ",null,77,"unidad ",388,29876,917]
["Modificación de artículo o servicio",50,"cd-r",null,9,"paquete x cient ",32941,296469,917,null,"cd-r",null,18,"paquete x cien",32941,592938,917]
["Modificación de artículo o servicio",51,"cd -rw",null,33,"paquete x veinticinco ",31553,1041249,917,null,"cd -rw",null,51,"paquete x veinticinco ",31553,1609203,917]
["Modificación de artículo o servicio",52,"cera para contar -cera dactilar cuenta facil ",null,64,"unidad ",794,50816,917,null,"cera para contar -cera dactilar cuenta facil ",null,82,"unidad ",794,65108,917]
["Modificación de artículo o servicio",53,"chinches x 50",null,96,"caja x cincuenta ",539,51744,917,null,"chinches x 50",null,168,"caja x cincuenta ",539,90552,917]
["Modificación de artículo o servicio",54,"chinchon traslucido x 100",null,14,"caja x cien ",941,13174,917,null,"chinchon traslucido x 100",null,28,"caja x cien ",941,26348,917]
["Modificación de artículo o servicio",55,"cinta adhesiva de empaque en rollo ",null,60,"rollo ",2155,129300,917,null,"cinta adhesiva de empaque en rollo ",null,88,"rollo",2155,189640,917]
["Modificación de artículo o servicio",56,"cinta adhesiva magica ",null,2,"rollo ",6465,12930,917,null,"cinta adhesiva magica ",null,17,"rollo",6465,109905,917]
["Modificación de artículo o servicio",57,"cinta adhesiva para enmascarar 12mm",null,55,"rollo ",1138,62590,917,null,"cinta adhesiva para enmascarar 12mm",null,84,"rollo",1138,95592,917]
["Modificación de artículo o servicio",58,"cinta adhesiva para enmascarar 48mm",null,41,"rollo ",4481,183721,917,null,"cinta adhesiva para enmascarar 48mm",null,68,"rollo",4481,304708,917]
["Modificación de artículo o servicio",59,"cina adhesica transparente ",null,62,"rollo ",442,27404,917,null,"cina adhesica transparente ",null,128,"rollo",442,56576,917]
["Modificación de artículo o servicio",60,"cinta falla ",null,16,"rollo ",1176,18816,917,null,"cinta falla ",null,40,"rollo",1176,47040,917]
["Modificación de artículo o servicio",61,"clip estandar pequeño x 100",null,188,"caja x cien ",293,55084,917,null,"clip estandar pequeño x 100",null,259,"rollo",293,75887,917]
["Modificación de artículo o servicio",62,"clip estandar paqueño plastificado x 100",null,191,"caja x cien ",835,159485,917,null,"clip estandar paqueño plastificado x 100",null,289,"caja x cien ",835,241315,917]
["Modificación de artículo o servicio",63,"clip jumbo x 100 ",null,47,"caja x cien ",1085,50995,917,null,"clip jumbo x 100 ",null,101,"caja x cien ",1085,109585,917]
["Modificación de artículo o servicio",64,"clips mariposa gigante x 12",null,98,"caja x doce ",1129,110642,917,null,"clips mariposa gigante x 12",null,207,"caja x doce ",1129,233703,917]
["Modificación de artículo o servicio",65,"colores ",null,16,"caja x doce ",2112,33792,917,null,"colores ",null,71,"caja x doce ",2112,149952,917]
["Modificación de artículo o servicio",66,"corrector liquido en frasco ",null,20,"unidad ",1000,20000,917,null,"corrector liquido en frasco ",null,25,"unidad ",1000,25000,917]
["Modificación de artículo o servicio",67,"corrector liquido en lapiz ",null,126,"unidad ",974,122724,917,null,"corrector liquido en lapiz ",null,195,"unidad ",974,189930,917]
["Modificación de artículo o servicio",68,"cosedora  de oficina 20  hojas ",null,33,"unidad ",5662,186846,917,null,"cosedora  de oficina 20  hojas ",null,46,"unidad ",5662,260452,917]
["Modificación de artículo o servicio",69,"cosedora de oficina 30 hojas ",null,59,"undiad ",11934,704106,917,null,"cosedora de oficina 30 hojas ",null,91,"unidad ",11934,1085994,917]
["Modificación de artículo o servicio",71,"dvd-r paquete x 50",null,11,"paquete x cincuenta ",18824,207064,917,null,"dvd-r paquete x 50",null,18,"paquete x cincuenta ",18824,338832,917]
["Modificación de artículo o servicio",72,"fechador de entintado manual ",null,26,"unidad",2000,52000,917,null,"fechador de entintado manual ",null,46,"unidad ",2000,92000,917]
["Modificación de artículo o servicio",73,"folder celugia con porta guia plastica en posicion horizontal paquete x 50 que cumplan con ntc 4436:1999y ntc 5397 paquete x 50",null,10,"paquete x cincuenta ",6588,65880,917,null,"folder celugia con porta guia plastica en posicion horizontal paquete x 50 que cumplan con ntc 4436:1999y ntc 5397 paquete x 50",null,21,"paquete x cincuenta ",6588,138348,917]
["Modificación de artículo o servicio",74,"foldder celuguia con pora guia plastica en posicion vertical, paquete x 50 que cumpla con ntc 4436-1999-y ntc 5397.",null,10,"paquete x cincuenta ",6588,{"$f":"ROUND(E104*G104, 2)","v":65880},917,null,{"$f":"C104","v":"foldder celuguia con pora guia plastica en posicion vertical, paquete x 50 que cumpla con ntc 4436-1999-y ntc 5397."},null,11,"paquete x cincuenta ",6588,{"$f":"ROUND(M104*O104, 2)","v":72468},917]
["Modificación de artículo o servicio",77,"forma continua oficio 3 partes caja x 1000",null,10,"caja x mil ",86413,864130,917,null,"forma continua oficio 3 partes caja x 1000",null,11,"caja x mil ",86413,950543,917]
["Modificación de artículo o servicio",78,"funda protectora de plastico tamaño carta x 100 unidades ",null,4,"paquete x cien ",6118,24472,917,null,"funda protectora de plastico tamaño carta x 100 unidades ",null,5,"paquete x cien ",6118,30590,917]
["Modificación de artículo o servicio",79,"funda protectora de palstico tamaño oficio x 100 unidades ",null,4,"paquete x cien ",7529,30116,917,null,"funda protectora de palstico tamaño oficio x 100 unidades ",null,5,"paquete x cien",7529,37645,917]
["Modificación de artículo o servicio",80,"gancho legajador plastico x 20 ",null,138,"paquete x viente ",1471,202998,917,null,"gancho legajador plastico x 20 ",null,158,"paquete x veinte ",1471,232418,917]
["Modificación de artículo o servicio",81,"gancho No. 23/14 caja x1000",null,40,"caja x mil ",2861,114440,917,null,"gancho No. 23/14 caja x1000",null,50,"caja x mil ",2861,143050,917]
["Modificación de artículo o servicio",82,"gancho No. 23/10 caja x1000",null,20,"caja x mil ",2409,48180,917,null,"gancho No. 23/10 caja x1000",null,30,"caja x mil ",2409,72270,917]
["Modificación de artículo o servicio",83,"gancho 23/12 caja x 1000",null,37,"caja x mil ",2560,94720,917,null,"gancho 23/12 caja x 1000",null,42,"caja x mil ",2560,107520,917]
["Modificación de artículo o servicio",84,"gancho No. 23/8 caja x 1000",null,30,"caja x mil ",2259,67770,917,null,"gancho No. 23/8 caja x 1000",null,35,"caja x mil ",2259,79065,917]
["Modificación de artículo o servicio",85,"grapa No. 26/6 caja x 5000",null,90,"caja x cincomil ",1362,122580,917,null,"grapa No. 26/6 caja x 5000",null,110,"caja x cincomil ",1362,149820,917]
["Modificación de artículo o servicio",86,"guia en cartulina carta paquete x 5",null,25,"paquete x cinco ",424,10600,917,null,"guia en cartulina carta paquete x 5",null,35,"paquete x cinco ",424,14840,917]
["Modificación de artículo o servicio",87,"guia en cartulina oficon paquete x 5",null,45,"paquete x cinco ",482,21690,917,null,"guia en cartulina oficon paquete x 5",null,55,"paquete x cinco ",482,26510,917]
["Modificación de artículo o servicio",89,"lapiz de chequeo mina roja ",null,120,"unidad",288,34560,917,null,"lapiz de chequeo mina roja ",null,160,"unidad",288,46080,917]
["Modificación de artículo o servicio",90,"lapiz de escritura mina negra ",null,93,"caja x doce ",2259,210087,917,null,"lapiz de escritura mina negra ",null,183,"unidad x doce ",2259,413397,917]
["Modificación de artículo o servicio",91,"legajador az ",null,20,"unidad ",2529,50580,917,null,"legajador az ",null,31,"unidad ",2529,78399,917]
["Modificación de artículo o servicio",92,"libretatelemensaje ",null,2,"unidad ",10276,20552,917,null,"libretatelemensaje ",null,34,"unidad ",10276,349384,917]
["Modificación de artículo o servicio",93,"libro de actas 100 folios ",null,340,"unidad ",3522,1197480,917,null,"libro de actas 100 folios ",null,522,"unidad ",3522,1838484,917]
["Modificación de artículo o servicio",94,"libro de actas 200 folios ",null,231,"unidad ",6147,1419957,917,null,{"$f":"C121","v":"libro de actas 200 folios "},null,311,"unidad ",6147,1911717,917]
["Modificación de artículo o servicio",95,"libro de actas 300 folios ",null,77,"unidad",9573,737121,917,null,"libro de actas 300 folios ",null,81,"unidad",9573,775413,917]
["Modificación de artículo o servicio",96,"libro de acatas 400 folios ",null,57,"undiad ",11454,652878,917,null,"libro de acatas 400 folios ",null,77,"unidad ",11454,881958,917]
["Modificación de artículo o servicio",97,"libro de actas 600 folios ",null,42,"unidad",15336,644112,917,null,"libro de actas 600 folios ",null,46,"unidad",15336,705456,917]
["Modificación de artículo o servicio",98,"manecilla doble xlip 1 pulg caja x 12",null,7,"caja x doce ",1414,9898,917,null,"manecilla doble xlip 1 pulg caja x 12",null,14,"unidad ",1414,19796,917]
["Modificación de artículo o servicio",99,"marcador borrable desechable ",null,451,"unidad ",706,318406,917,null,"marcador borrable desechable ",null,642,"unidad",706,453252,917]
["Modificación de artículo o servicio",100,"marcador borrable recargable ",null,40,"unidad ",1154,46160,917,null,"marcador borrable recargable ",null,68,"unidad ",1154,78472,917]
["Modificación de artículo o servicio",101,"marcador permanente ",null,323,"unidad ",424,136952,917,null,"marcador permanente ",null,423,"unidad ",424,179352,917]
["Modificación de artículo o servicio",102,"marcador permanente punto delgada ",null,135,"unidad ",741,100035,917,null,"marcador permanente punto delgada ",null,210,"unidad ",741,155610,917]
["Modificación de artículo o servicio",103,"memoria usb ",null,46,"unidad",9071,417266,917,null,"memoria usb ",null,96,"unidad",9071,870816,917]
["Modificación de artículo o servicio",104,"mina para portaminas 0,5 mm",null,7,"unidad ",294,2058,917,null,"mina para portaminas 0,5 mm",null,93,"unidad ",294,27342,917]
["Modificación de artículo o servicio",105,"mina para portaminas 0,7 mm",null,56,"unidad ",294,16464,917,null,"mina para portaminas 0,7 mm",null,66,"unidad ",294,19404,917]
["Modificación de artículo o servicio",106,"notas autoadhesivas estandar /taco/bloque /cubo de minimo 100 hojas ",null,217,"unidad",1280,277760,917,null,"notas autoadhesivas estandar /taco/bloque /cubo de minimo 100 hojas ",null,290,"unidad ",1280,371200,917]
["Modificación de artículo o servicio",107,"notas autoadhesivas  pequeñas /taco/bloque /cubo de minimo 100 hojas ",null,226,"unidad ",548,123848,917,null,"notas autoadhesivas  pequeñas /taco/bloque /cubo de minimo 100 hojas ",null,262,"unidad ",548,143576,917]
["Modificación de artículo o servicio",108,"numerador entintdo manual 6 digitos ",null,24,"unidad ",2759,66216,917,null,"numerador entintdo manual 6 digitos ",null,27,"unidad ",2759,74493,917]
["Modificación de artículo o servicio",109,"numerador entintdo manual 8 digitos ",null,20,"undiad ",2253,{"$f":"ROUND(E136*G136, 2)","v":45060},917,null,"numerador entintdo manual 8 digitos ",null,30,"unidad",2253,{"$f":"ROUND(M136*O136, 2)","v":67590},917]
["Modificación de artículo o servicio",110,"padmouse",null,69,"unidad ",4118,284142,917,null,"padmouse",null,93,"unidad",4118,382974,917]
["Modificación de artículo o servicio",113,"papel bond 75g carta caja x 10 resma ",null,162,"caja x diez ",80000,12960000,917,null,"papel bond 75g carta caja x 10 resma ",null,291,"caja x diez ",80000,23280000,917]
["Modificación de artículo o servicio",114,"papel bon 75 g oficio  caja x 10 resmas ",null,134,"caja x diez ",102353,13715302,917,null,"papel bon 75 g oficio  caja x 10 resmas ",null,237,"caja x diez ",102353,24257661,917]
["Modificación de artículo o servicio",115,"papel carbon para maquina carta x 100",null,1,"unidad",6118,6118,917,null,"papel carbon para maquina carta x 100",null,2,"unidad ",6118,12236,917]
["Modificación de artículo o servicio",116,"papel contac colores ",null,15,"rollo ",28635,429525,917,null,"papel contac colores ",null,26,"rollo",28635,744510,917]
["Modificación de artículo o servicio",117,"papel contac transparente ",null,30,"rollo ",26082,782460,917,null,"papel contac transparente ",null,62,"rollo",26082,1617084,917]
["Modificación de artículo o servicio",119,"papel kraft 90g",null,3,"rollo ",47059,141177,917,null,"papel kraft 90g",null,7,"rolllo",47059,329413,917]
["Modificación de artículo o servicio",122,"papel periodico pliego ",null,24,"paquete x diez",1176,28224,917,null,"papel periodico pliego ",null,54,"paquete x diez ",1176,63504,917]
["Modificación de artículo o servicio",124,"pegante en barra ",null,264,"unidad ",1352,356928,917,null,"pegante en barra ",null,313,"unidad ",1352,423176,917]
["Modificación de artículo o servicio",125,"pagane instantaneo ",null,25,"unidad ",1592,39800,917,null,"pagane instantaneo ",null,41,"unidad",1592,65272,917]
["Modificación de artículo o servicio",126,"pegante liquido 225g",null,56,"unidad ",1165,65240,917,null,"pegante liquido 225g",null,92,"unidad",1165,107180,917]
["Modificación de artículo o servicio",127,"pegante liquido 4000g",null,29,"unidad ",14896,431984,917,null,"pegante liquido 4000g",null,30,"unidad ",14896,446880,917]
["Modificación de artículo o servicio",130,"perforadora para oficna de 2 huecos ",null,47,"unidad ",5795,272365,917,null,"perforadora para oficna de 2 huecos ",null,55,"unidad ",5795,318725,917]
["Modificación de artículo o servicio",131,"perforadora 3 huecos ",null,1,"unidad ",15409,15409,917,null,"perforadora 3 huecos ",null,2,"unidad",15409,30818,917]
["Modificación de artículo o servicio",140,"plastifolder carta con gancho legador ",null,10,"unidad ",1118,11180,917,null,"plastifolder carta con gancho legador ",null,12,"unidad",1118,13416,917]
["Modificación de artículo o servicio",141,"plastifolder oficios con ganchos legajador ",null,10,"unidad ",1176,11760,917,null,"plastifolder oficios con ganchos legajador ",null,12,"unidad",1176,14112,917]
["Modificación de artículo o servicio",142,"pliego foamy ",null,60,"unidad ",2953,177180,917,null,"pliego foamy ",null,63,"unidad ",2953,186039,917]
["Modificación de artículo o servicio",143,"plimones caja x 12",null,22,"caja x doce ",3282,72204,917,null,"plimones caja x 12",null,28,"caja x doce ",3282,91896,917]
["Modificación de artículo o servicio",144,"portaminas 0,5mm",null,11,"unidad",460,5060,917,null,"portaminas 0,5mm",null,26,"unidad",{"$f":"+G155","v":460},11960,917]
["Modificación de artículo o servicio",145,"portaminas 0,7mm",null,36,"unidad",460,{"$f":"ROUND(E156*G156, 2)","v":16560},917,null,{"$f":"C156","v":"portaminas 0,7mm"},null,48,"unidad",460,{"$f":"ROUND(M156*O156, 2)","v":22080},917]
["Modificación de artículo o servicio",146,"regla  plastica ",null,47,"unidad",294,13818,917,null,"regla  plastica ",null,51,"unidad",294,14994,917]
["Modificación de artículo o servicio",147,"regla metalica grande ",null,4,"unidad ",1294,5176,917,null,"regla metalica grande ",null,36,"unidad",1294,46584,917]
["Modificación de artículo o servicio",148,"regla metalica",null,115,"unidad ",753,86595,917,null,"regla metalica",null,155,"unidad",753,116715,917]
["Modificación de artículo o servicio",149,"repuesto bisturi 18mmpaquete x10",null,80,"paquete x diez ",765,61200,917,null,"repuesto bisturi 18mmpaquete x10",null,97,"paquete x diez ",765,74205,917]
["Modificación de artículo o servicio",150,"repuesto bisturi 9mmpaquete x10",null,10,"paquete x diez ",508,5080,917,null,"repuesto bisturi 9mmpaquete x10",null,20,"paquete x diez ",508,10160,917]
["Modificación de artículo o servicio",151,"resaltador desechable ",null,405,"unidad",414,167670,917,null,"resaltador desechable ",null,509,"unidad ",414,210726,917]
["Modificación de artículo o servicio",152,"sacagancho para grapa ",null,85,"unidad ",918,78030,917,null,"sacagancho para grapa ",null,117,"unidad ",918,107406,917]
["Modificación de artículo o servicio",153,"separador plastico carta paquete x 5",null,109,"paquete x cinco ",741,80769,917,null,"separador plastico carta paquete x 5",null,119,"unidad",741,88179,917]
["Modificación de artículo o servicio",154,"separador plastico oficina paquete x 5",null,119,"paquete x cinco ",824,98056,917,null,"separador plastico oficina paquete x 5",null,130,"paquete x cinco ",824,107120,917]
["Modificación de artículo o servicio",155,"silicona liquida ",null,46,"unidad ",1912,87952,917,null,"silicona liquida ",null,62,"unidad ",1912,118544,917]
["Modificación de artículo o servicio",156,"sobre carta paquete x 100",null,30,"paquete x cien ",4706,141180,917,null,"sobre carta paquete x 100",null,36,"paquete x cien ",4706,169416,917]
["Modificación de artículo o servicio",157,"sobre corespondencia paquete x 100",null,14,"paquete x cien ",2652,37128,917,null,"sobre corespondencia paquete x 100",null,16,"paquete x cien ",2652,42432,917]
["Modificación de artículo o servicio",158,"sobre de felpa para cd ",null,100,"unidad ",47,4700,917,null,"sobre de felpa para cd ",null,219,"undiad ",47,10293,917]
["Modificación de artículo o servicio",159,"sobre de manila carta paquete x 100",null,69,"paquete x cien",4706,324714,917,null,"sobre de manila carta paquete x 100",null,76,"paquete x cien",4706,357656,917]
["Modificación de artículo o servicio",160,"sobre de manila extra oficio  paquete x 100",null,20,"paquete x cien",7075,141500,917,null,"sobre de manila extra oficio  paquete x 100",null,28,"paquete x cien",7075,198100,917]
["Modificación de artículo o servicio",161,"sobre de manila medio oficio  paquete x 100",null,10,"paquete x cien ",3647,36470,917,null,"sobre de manila medio oficio  paquete x 100",null,17,"paquete x cien",3647,61999,917]
["Modificación de artículo o servicio",162,"sobre de manila oficio  paquete x 100",null,77,"paquete x cien ",5529,425733,917,null,"sobre de manila oficio  paquete x 100",null,93,"paquete x cien",5529,514197,917]
["Modificación de artículo o servicio",164,"sobre medio oficio  paquete x 100",null,17,"paquete x cien ",3647,61999,917,null,"sobre medio oficio  paquete x 100",null,25,"paquete x cien",3647,91175,917]
["Modificación de artículo o servicio",165,"sobre  oficio  paquete x 100",null,10,"paquete x cien ",5529,55290,917,null,"sobre  oficio  paquete x 100",null,20,"paquete x cien",5529,110580,917]
["Modificación de artículo o servicio",166,"sobre  para archivo carta ",null,100,"undiad ",128,12800,917,null,"sobre  para archivo carta ",null,105,"unidad ",128,13440,917]
["Modificación de artículo o servicio",167,"sobre  para archivo oficio",null,101,"unidad ",160,16160,917,null,"sobre  para archivo oficio",null,108,"unidad ",160,17280,917]
["Modificación de artículo o servicio",168,"tabla planillera ",null,35,"unidad ",2259,79065,917,null,"tabla planillera ",null,45,"unidad",2259,101655,917]
["Modificación de artículo o servicio",171,"taco de papel ",null,24,"unidad ",941,22584,917,null,"taco de papel ",null,55,"unidad",941,51755,917]
["Modificación de artículo o servicio",172,"tajalapiz",null,115,"unidad ",246,28290,917,null,"tajalapiz",null,145,"unidad",246,35670,917]
["Modificación de artículo o servicio",173,"tijera en acero inoxidable ",null,36,"unidad ",1929,69444,917,null,"tijera en acero inoxidable ",null,49,"unidad",1929,94521,917]
["Modificación de artículo o servicio",174,"tijera punta roma ",null,23,"unidad",1022,23506,917,null,"tijera punta roma ",null,54,"unidad",1022,55188,917]
["Modificación de artículo o servicio",175,"tinta marcador borrable recargable ",null,10,"unidad",1400,14000,917,null,"tinta marcador borrable recargable ",null,17,"unidad",1400,23800,917]
["Modificación de artículo o servicio",176,"tinta para sello 28 a 30 cc negro",null,30,"unidad",1171,35130,917,null,"tinta para sello 28 a 30 cc negro",null,44,"unidad",1171,51524,917]
["Modificación de artículo o servicio",177,"tinta para sello para documenteo historico y archivistico 28 a 30 c azul",null,10,"uniddad",1171,11710,917,null,"tinta para sello para documenteo historico y archivistico 28 a 30 c azul",null,11,"unidad",1171,12881,917]
["Modificación de artículo o servicio",178,"tinta para sello para documenteo historico y archivistico 28 a 30 c negro ",null,20,"undiad ",1171,23420,917,null,"tinta para sello para documenteo historico y archivistico 28 a 30 c negro ",null,21,"unidad",1171,24591,917]
["Modificación de artículo o servicio",181,"tinta para  sello x 500 cc negro",null,12,"unidad ",8082,96984,917,null,"tinta para  sello x 500 cc negro",null,2,"unidad ",8082,16164,917]
[]
[null,null,null,null,null,null,"Cantidad de celdas a agregar:",null,1]
[]
[]
["Sección 5: Resultados de la modificación"]
[]
["Número de la línea según O.C.","Nombre del artículo",null,null,null,"Valores actuales",null,null,"Nuevos valores"]
[null,"Valor de la línea IVA en la Orden de Compra:",null,null,null,{"$f":"ROUND(M195, 2)","v":13777992.5},null,null,19877248.5,null,null,null,13777992.5]
[null,"Valor de la línea AIU en la Orden de Compra:"]
[null,"Valor de la línea gravámenes adicionales en la Orden de Compra:"]
[]
[null,null,null,null,null,null,null,null,null,null,null,"07 MARZO DE 2017"]
[]
[]
[null,"Firma ordenador del gasto",null,null,null,null,"Firma de Proveedor",null,null,null,null,"Fecha de elaboración"]
[]
["Nombre:","LEONARADO BARRETO GAITAN ",null,null,null,"Nombre:","DIEGO PAVA PIÑEROS ",null,null,null,"Las partes manifestamos que este mismo documento se cargará en la plataforma en formato Excel (.xlsm) y los cambios se pueden validar con el mismo."]
["Documento de Identidad:","93,085,869 DE GUAMO TOLIMA ",null,null,"Documento de Identidad:",null,"1.010.160.734 DE BOGOTA"]

{"sheet":"Instructivo de Diligenciamiento","index":1,"n_rows":4,"n_cols":2,"rows_kept":4,"cut":false,"hidden":false,"merged":[[3,1,82,10]]}
[]
[]
[]
[null,"Instrucciones de diligenciamiento:\n\nColombia Compra Eficiente ha diseñado este formato para que las Entidades Compradoras puedan realizar aclaraciones, modificaciones, cancelaciones o terminaciones y liquidaciones de las Órdenes de Compra que estén en ejecución y vigentes, o ejecutadas. Para ello debe indicar:\n\nDatos generales: Datos básicos como número de la Orden de Compra que requiere cambiar, número consecutivo de solicitud tenga en cuenta que la primera solicitud corresponderá a la número “1”, nombre de la Entidad Compradora, nombre de la persona que solicita las acciones, celular o número de teléfono y extensión, NIT de la Entidad Compradora y el nombre del Proveedor que ejecuta la Orden de Compra.\n\nSección 1. Tipo de acción: Las Entidades pueden solicitar cuatro tipos de acciones respecto de las Órdenes de Compra:\n\n(i) Aclaraciones: Son las indicaciones de cambio de información que no afectan el plazo, el valor o las condiciones contractuales de las Órdenes de Compra como: redacción en las condiciones de entrega, errores de digitación  o rectificación de la fecha de vencimiento. Estas aclaraciones no requieren de la aceptación del Proveedor. Sin embargo una vez realizada la aclaración en la Orden de Compra, la Entidad Compradora debe notificarle al Proveedor el cambio. \n\n(ii) Modificaciones: Son indicaciones de cambio en aumento o disminución de valor o plazo,  aumento o disminución de los bienes o servicios solicitados, cambios en las condiciones de ejecución o datos que afecten la ejecución de la Orden de Compra. Solo en los casos de cambio de supervisor y datos de notificación como dirección o teléfono se puede omitir la firma del Proveedor. Sin embargo una vez realizada la modificación, la Entidad Compradora debe notificarle al Proveedor el cambio.\n\n(iii) Cancelación: Es la manifestación de la Entidad de no iniciar la ejecución de la Orden de Compra la cual también debe ser aceptada por el Proveedor.\n\n(iv) Terminación y Liquidación: Este tipo de acción es mediante la cual una Entidad Compradora formaliza la terminación y liquidación de las obligaciones derivadas de la Orden de Compra y así establece las acreencias pendientes a favor o en contra de cada parte de la Orden de Compra, también sirve para aclarar la ejecución de la misma o realizar la terminación anticipada en caso de que las partes así lo deseen. Este tipo de acción se debe aplicar dentro de los términos establecidos en cada Acuerdo Marco de Precios, para lo cual se requiere la solicitud por parte de la Entidad Compradora firmada por el Ordenador del Gasto y el representante legal del Proveedor, así como el informe del supervisor de la Orden de Compra. \n\nSección 2.  Justificación: Las razones de la realización del cambio de la Orden de Compra.\n\nSección 3. Modificación información general: la idea en esta sección es indicar cuales son los datos de información general de la orden de compra que requiere cambiar\n\nSección 4. Modificación de artículos o servicios: esta sección unicamente aplica en caso de que la acción a realizar sea modificar o terminar y liquidar la orden de compra, allí deberá indicar el tipo de midificación que desea realizar e ingresar o modificar los articulos que desea ajustar. Al momento de diligenciar esta sección tenga en cuenta las siguientes recomendaciones:\n\n(i) Las correcciones en el plazo de ejecución son diferentes a las modificaciones en el plazo, ejemplo: la Entidad Compradora adquirió elementos con tres entregas parciales pero digitó como fecha final de la Orden de Compra la fecha de la primera entrega, para corregir esto la Entidad Compradora selecciona en tipo de acción: aclaración y en el campo de fecha de vencimiento indica la fecha correcta. En el caso que fuera cambio de fecha fin, ejemplo: prorrogar o disminuir varios meses la ejecución de la Orden de Compra se utiliza en tipo de acción: modificación.\n\n(ii) para la realización de las modificaciones tenga en cuenta las secciones de modificación de cada una de las guías de compra\n\n(iii) los valores y cantidades solo pueden tener hasta dos decimales.\n\n(iv) la decisión de modificar, adicionar o combinar las dos opciones dependerá de las necesidades de cada Entidad Compradora, ejemplo si es un servicio y adicionalmente solo requiere modificar “cantidad” se recomienda seleccionar “modificación de artículo”, cuando son bienes puede modificar cualquiera de los demás campos.\n\n(v) si requiere cambio de condiciones de un servicio ya ejecutado se recomienda modificar la línea para que se refleje la parte ejecutada y adicionar una nueva línea para las nuevas condiciones del servicio que va a ejecutar.\n\nSección 5. Resultados de la modificación: La entidad siempre debe indicar en el recuadro el valor total del IVA, AIU, gravámenes adicionales, estos campos serán los valores finales que quedarán en la Orden de Compra después de la modificación, tenga en cuenta que el campo de IVA no aplica para algunos AMP como: papelería, vehículos y SOAT y que el campo de AIU solo aplica para aseo y cafetería.\n\nFirmas del documento: El ordenador del gasto de la Entidad Compradora debe firmar el documento y enviarlo al Proveedor para que lo acepte y firme, en caso de que así se requiera. El documento firmado debe ser enviado a través del aplicativo dispuesto por   Colombia Compra Eficiente para realizar las acciones solicitadas.\n\nFecha de elaboración del documento: Corresponde a la fecha en la que la Entidad Compradora y el Proveedor llegaron a un acuerdo para realizar las acciones y se suscribe el documento, recuerde que: (i) para poder realizar modificaciones en las Órdenes de Compra las mismas se deben acordar dentro de la vigencia de la Orden de Compra, (ii) Las órdenes de compra no se podrán modificar si ya se encuentran vencidas, (iii) Se da por realizada la modificación o acción que requiera realizar la Entidad, desde le momento en que las partes la firmen. Colombia Compra Eficiente lo único que realiza en la Tienda Virtual es el proceso de publicación de la modificación o ajuste que las partes hayan acordado a través de la firma de este documento. \n\nSi la Entidad Compradora requiere agregar archivos que estén relacionados con las acciones a realizar como: copia del CDP y/o aprobación de Vigencia Futura (VF) que soporta la adición, soportes documentales, correos, cartas, etc... debe publicarlos junto con el documento de modificación suscrito en un único archivo .Pdf con alta resolución de escaneo, si el documento no es legible se tomaran los cambios contenidos en el formato Excel, tenga en cuenta que Colombia Compra Eficiente únicamente publicará las modificaciones especificadas en el formato enviado por el aplicativo.\n\n"]

{"sheet":"Listas","index":2,"n_rows":5,"n_cols":3,"rows_kept":5,"cut":false,"hidden":true,"merged":[]}
["TipoDeModificacion",null,"Modificacion"]
["Modificación de la Orden de Compra",null,"Modificación de artículo o servicio"]
["Aclaración a la Orden de Compra",null,"Agregar nuevo artículo o servicio"]
["Cancelación de la Orden de Compra",null,"Eliminar artículo o servicio"]
["Terminación y Liquidación de la Orden de Compra",null,"Ninguna"]